fUSD/lending_fUSD_20250609
["ID","MTS","AMOUNT","RATE_DAILY","PERIOD"]
[365065371,1749436243544,-480.0,0.0001916,2]
[365065373,1749436243553,-661.6,0.0001916,2]
[365065375,1749436243563,-480.0,0.0001916,2]
[365065377,1749436243572,-480.0,0.0001916,2]
[365065379,1749436243582,-480.0,0.0001916,2]
[365065381,1749436243592,-710.69,0.0001916,2]
[365065383,1749436243601,-480.0,0.0001916,2]
[365065385,1749436243610,-480.0,0.0001916,2]
[365065387,1749436243619,-480.0,0.0001916,2]
[365065389,1749436243628,-442.07741758,0.0001916,2]
[365065390,1749436243637,-460.0,0.0001916,2]
[365065392,1749436243646,-460.0,0.00019161,2]
[365065394,1749436243656,-460.0,0.00019161,2]
[365065396,1749436243665,-348.38038077,0.00019161,2]
[365065398,1749436243674,-306.03726121,0.00019161,2]
[365065400,1749436243683,-480.0,0.00019161,2]
[365065402,1749436243692,-460.0,0.00019161,2]
[365065404,1749436243702,-480.0,0.00019161,2]
[365065406,1749436243712,-460.0,0.00019161,2]
[365065408,1749436243722,-266.91496015,0.00019161,2]
[365065410,1749436243731,-310.24762334,0.00019161,2]
[365065412,1749436243740,-250.0,0.00019161,2]
[365065414,1749436243749,-480.0,0.00019161,2]
[365065416,1749436243758,-387.95849796,0.00019161,2]
[365065418,1749436243767,-480.0,0.00019161,2]
[365065420,1749436243777,-480.0,0.00019161,2]
[365065422,1749436243786,-480.0,0.00019161,2]
[365065424,1749436243794,-480.0,0.00019161,2]
[365065425,1749436243804,-460.0,0.00019161,2]
[365065427,1749436243813,-480.0,0.00019161,2]
[365065429,1749436243822,-305.96845475,0.00019161,2]
[365065431,1749436243832,-460.0,0.00019161,2]
[365065433,1749436243841,-307.03863148,0.00019161,2]
[365065435,1749436243850,-480.0,0.00019161,2]
[365065437,1749436243859,-480.0,0.00019161,2]
[365065439,1749436243868,-460.0,0.00019161,2]
[365065441,1749436243877,-480.0,0.00019161,2]
[365065443,1749436243886,-460.0,0.00019161,2]
[365065445,1749436243895,-460.0,0.00019161,2]
[365065447,1749436243905,-480.0,0.00019161,2]
[365065449,1749436243915,-307.72173171,0.00019161,2]
[365065451,1749436243924,-480.0,0.00019161,2]
[365065452,1749436243933,-480.0,0.00019161,2]
[365065454,1749436243942,-460.0,0.00019161,2]
[365065456,1749436243954,-480.0,0.00019161,2]
[365065457,1749436243964,-460.0,0.00019161,2]
[365065459,1749436243973,-480.0,0.00019161,2]
[365065460,1749436243983,-480.0,0.00019161,2]
[365065462,1749436243992,-460.0,0.00019161,2]
[365065464,1749436244001,-480.0,0.00019161,2]
[365065465,1749436244011,-480.0,0.00019161,2]
[365065467,1749436244020,-460.0,0.00019161,2]
[365065468,1749436244029,-460.0,0.00019161,2]
[365065470,1749436244038,-392.63576747,0.00019161,2]
[365065472,1749436244047,-306.29297612,0.00019161,2]
[365065473,1749436244056,-460.0,0.00019161,2]
[365065475,1749436244065,-480.0,0.00019161,2]
[365065476,1749436244075,-460.0,0.00019161,2]
[365065478,1749436244084,-350.55389496,0.00019161,2]
[365065480,1749436244093,-480.0,0.00019161,2]
[365065481,1749436244102,-480.0,0.00019161,2]
[365065483,1749436244111,-480.0,0.00019161,2]
[365065485,1749436244121,-533.04847309,0.00019161,2]
[365065486,1749436244131,-480.0,0.00019161,2]
[365065488,1749436244140,-480.0,0.00019161,2]
[365065490,1749436244149,-480.0,0.00019161,2]
[365065491,1749436244158,-493.10702139,0.00019161,2]
[365065493,1749436244167,-480.0,0.00019161,2]
[365065494,1749436244176,-480.0,0.00019161,2]
[365065496,1749436244186,-480.0,0.00019161,2]
[365065498,1749436244195,-503.12,0.00019161,2]
[365065500,1749436244204,-480.0,0.00019161,2]
[365065501,1749436244214,-480.0,0.00019161,2]
[365065503,1749436244223,-480.0,0.00019161,2]
[365065505,1749436244232,-486.1860898,0.00019161,2]
[365065506,1749436244241,-460.0,0.00019161,2]
[365065508,1749436244250,-350.23101046,0.00019161,2]
[365065510,1749436244259,-559.17863933,0.00019161,2]
[365065511,1749436244268,-480.0,0.00019161,2]
[365065513,1749436244277,-460.0,0.00019161,2]
[365065514,1749436244286,-358.5493647,0.00019161,2]
[365065516,1749436244295,-480.0,0.00019161,2]
[365065518,1749436244304,-480.0,0.00019161,2]
[365065519,1749436244313,-480.0,0.00019161,2]
[365065521,1749436244322,-480.0,0.00019161,2]
[365065523,1749436244335,-480.0,0.00019161,2]
[365065525,1749436244344,-480.0,0.00019161,2]
[365065527,1749436244353,-382.94924654,0.00019161,2]
[365065528,1749436244362,-480.0,0.00019161,2]
[365065530,1749436244372,-480.0,0.00019161,2]
[365065531,1749436244381,-480.0,0.00019161,2]
[365065533,1749436244391,-480.0,0.00019161,2]
[365065535,1749436244400,-480.0,0.00019161,2]
[365065537,1749436244410,-584.37786851,0.00019161,2]
[365065538,1749436244419,-480.0,0.00019161,2]
[365065540,1749436244429,-480.0,0.00019161,2]
[365065542,1749436244439,-500.0,0.00019161,2]
[365065543,1749436244449,-480.0,0.00019161,2]
[365065545,1749436244459,-392.53204948,0.00019161,2]
[365065547,1749436244468,-473.45004637,0.00019161,2]
[365065549,1749436244476,-477.69479692,0.00019161,2]
[365065550,1749436244486,-474.25694156,0.00019161,2]
[365065552,1749436244495,-466.76815476,0.00019161,2]
[365065554,1749436244504,-485.80600239,0.00019161,2]
[365065556,1749436244513,-528.81317757,0.00019161,2]
[365065557,1749436244522,-473.17036735,0.00019161,2]
[365065559,1749436244531,-469.21050647,0.00019161,2]
[365065561,1749436244540,-475.1573027,0.00019161,2]
[365065562,1749436244549,-480.0,0.00019161,2]
[365065564,1749436244558,-449.74216418,0.00019161,2]
[365065566,1749436244567,-466.27907237,0.00019161,2]
[365065568,1749436244576,-471.55883644,0.00019161,2]
[365065569,1749436244584,-472.32976233,0.00019161,2]
[365065571,1749436244594,-487.33540718,0.00019161,2]
[365065573,1749436244603,-477.33616909,0.00019161,2]
[365065575,1749436244613,-480.09093948,0.00019161,2]
[365065577,1749436244622,-309.36954663,0.00019161,2]
[365065578,1749436244632,-524.8107052,0.00019161,2]
[365065580,1749436244641,-473.05498638,0.00019161,2]
[365065582,1749436244653,-227.29350443,0.00019161,2]
[365065584,1749436244662,-467.44928151,0.00019161,2]
[365065585,1749436244671,-467.77874216,0.00019161,2]
[365065587,1749436244681,-473.94815353,0.00019161,2]
[365065589,1749436244690,-460.0,0.00019161,2]
[365065591,1749436244699,-472.52524234,0.00019161,2]
[365065592,1749436244708,-479.90418806,0.00019161,2]
[365065594,1749436244717,-465.72055736,0.00019161,2]
[365065596,1749436244726,-592.78459893,0.00019161,2]
[365065597,1749436244736,-472.01192591,0.00019161,2]
[365065599,1749436244745,-483.24371674,0.00019161,2]
[365065601,1749436244754,-461.9990964,0.00019161,2]
[365065603,1749436244763,-473.07806647,0.00019161,2]
[365065604,1749436244773,-307.83474511,0.00019161,2]
[365065606,1749436244783,-462.72724848,0.00019161,2]
[365065608,1749436244791,-472.84884959,0.00019161,2]
[365065609,1749436244801,-480.0,0.00019161,2]
[365065611,1749436244810,-479.90789602,0.00019161,2]
[365065613,1749436244820,-470.04982267,0.00019161,2]
[365065614,1749436244830,-474.23786043,0.00019161,2]
[365065616,1749436244839,-484.35233357,0.00019161,2]
[365065618,1749436244848,-306.37911309,0.00019161,2]
[365065620,1749436244858,-470.83787364,0.00019161,2]
[365065622,1749436244867,-467.19244094,0.00019161,2]
[365065624,1749436244876,-473.38240343,0.00019161,2]
[365065626,1749436244885,-309.83588978,0.00019161,2]
[365065628,1749436244894,-477.3920605,0.00019161,2]
[365065630,1749436244903,-480.0,0.00019161,2]
[365065632,1749436244913,-514.84717673,0.00019161,2]
[365065634,1749436244921,-467.47792664,0.00019161,2]
[365065636,1749436244931,-470.31044651,0.00019161,2]
[365065638,1749436244941,-467.2491266,0.00019161,2]
[365065640,1749436244950,-480.15551963,0.00019161,2]
[365065642,1749436244960,-467.55983583,0.00019161,2]
[365065644,1749436244970,-544.56468321,0.00019161,2]
[365065646,1749436244979,-485.66308973,0.00019161,2]
[365065648,1749436244989,-479.0060605,0.00019161,2]
[365065650,1749436244998,-470.1596314,0.00019161,2]
[365065652,1749436245009,-473.11111665,0.00019161,2]
[365065653,1749436245019,-473.30707898,0.00019161,2]
[365065655,1749436245029,-474.4014204,0.00019161,2]
[365065657,1749436245038,-476.58558334,0.00019161,2]
[365065659,1749436245047,-528.68317466,0.00019161,2]
[365065661,1749436245057,-441.0815311,0.00019161,2]
[365065663,1749436245066,-466.19719812,0.00019161,2]
[365065665,1749436245075,-470.1264788,0.00019161,2]
[365065667,1749436245084,-428.56262161,0.00019161,2]
[365065668,1749436245093,-470.94569783,0.00019161,2]
[365065669,1749436245102,-471.9739613,0.00019161,2]
[365065670,1749436245111,-486.85375049,0.00019161,2]
[365065671,1749436245121,-463.19748608,0.00019161,2]
[365065672,1749436245130,-480.76978591,0.00019161,2]
[365065673,1749436245140,-463.77310106,0.00019161,2]
[365065674,1749436245149,-469.81240882,0.00019161,2]
[365065675,1749436245158,-350.72722673,0.00019161,2]
[365065676,1749436245167,-460.0,0.00019161,2]
[365065677,1749436245176,-432.41628113,0.00019161,2]
[365065678,1749436245186,-429.11915463,0.00019161,2]
[365065679,1749436245195,-471.27282261,0.00019161,2]
[365065680,1749436245206,-356.01270693,0.00019161,2]
[365065681,1749436245215,-500.0,0.00019161,2]
[365065682,1749436245225,-473.72,0.00019161,2]
[365065683,1749436245234,-467.9019048,0.00019161,2]
[365065684,1749436245243,-473.76687236,0.00019161,2]
[365065685,1749436245253,-470.2722285,0.00019161,2]
[365065686,1749436245262,-460.0,0.00019161,2]
[365065687,1749436245271,-460.0,0.00019161,2]
[365065688,1749436245281,-460.0,0.00019161,2]
[365065689,1749436245290,-450.15387779,0.00019161,2]
[365065690,1749436245300,-460.0,0.00019161,2]
[365065691,1749436245309,-468.53935082,0.00019161,2]
[365065692,1749436245318,-460.0,0.00019161,2]
[365065694,1749436245331,-460.0,0.00019161,2]
[365065695,1749436245339,-480.0,0.00019161,2]
[365065697,1749436245349,-460.0,0.00019161,2]
[365065699,1749436245358,-467.17521831,0.00019161,2]
[365065701,1749436245367,-511.70914342,0.00019161,2]
[365065703,1749436245377,-435.51865018,0.00019161,2]
[365065705,1749436245386,-486.71165972,0.00019161,2]
[365065707,1749436245395,-480.0,0.00019161,2]
[365065709,1749436245405,-466.69304722,0.00019161,2]
[365065711,1749436245415,-480.0,0.00019161,2]
[365065712,1749436245424,-480.0,0.00019161,2]
[365065714,1749436245433,-283.21191754,0.00019161,2]
[365065716,1749436245442,-471.08401289,0.00019161,2]
[365065718,1749436245451,-483.41130163,0.00019161,2]
[365065720,1749436245460,-480.0,0.00019161,2]
[365065722,1749436245469,-480.0,0.00019161,2]
[365065724,1749436245478,-467.42706567,0.00019161,2]
[365065726,1749436245487,-1011.47901445,0.00019161,2]
[365065727,1749436245497,-460.0,0.00019161,2]
[365065729,1749436245507,-469.1542109,0.00019161,2]
[365065731,1749436245517,-437.57172289,0.00019161,2]
[365065733,1749436245526,-460.0,0.00019161,2]
[365065735,1749436245535,-460.0,0.00019161,2]
[365065737,1749436245544,-460.0,0.00019161,2]
[365065739,1749436245554,-460.0,0.00019161,2]
[365065741,1749436245563,-460.0,0.00019161,2]
[365065743,1749436245572,-479.54055227,0.00019161,2]
[365065744,1749436245581,-480.0,0.00019161,2]
[365065746,1749436245591,-460.0,0.00019161,2]
[365065748,1749436245600,-422.24236392,0.00019161,2]
[365065750,1749436245609,-460.0,0.00019161,2]
[365065752,1749436245619,-460.0,0.00019161,2]
[365065754,1749436245628,-480.0,0.00019161,2]
[365065756,1749436245638,-428.95237619,0.00019161,2]
[365065758,1749436245648,-470.40578117,0.00019161,2]
[365065760,1749436245658,-460.0,0.00019161,2]
[365065762,1749436245667,-434.67087728,0.00019161,2]
[365065764,1749436245677,-480.0,0.00019161,2]
[365065766,1749436245688,-468.18643786,0.00019161,2]
[365065768,1749436245697,-460.0,0.00019161,2]
[365065770,1749436245708,-518.90793594,0.00019161,2]
[365065772,1749436245717,-480.0,0.00019161,2]
[365065774,1749436245727,-464.49687844,0.00019161,2]
[365065776,1749436245737,-460.0,0.00019161,2]
[365065778,1749436245747,-468.63630322,0.00019161,2]
[365065780,1749436245758,-480.0,0.00019161,2]
[365065782,1749436245767,-426.91879097,0.00019161,2]
[365065784,1749436245777,-466.69053385,0.00019161,2]
[365065786,1749436245787,-468.2720229,0.00019161,2]
[365065788,1749436245797,-460.0,0.00019161,2]
[365065790,1749436245807,-466.96063848,0.00019161,2]
[365065792,1749436245816,-452.85750893,0.00019161,2]
[365065794,1749436245826,-480.0,0.00019161,2]
[365065796,1749436245835,-464.10692208,0.00019161,2]
[365065798,1749436245844,-466.73152245,0.00019161,2]
[365065799,1749436245853,-468.48992525,0.00019161,2]
[365065801,1749436245863,-480.0,0.00019161,2]
[365065803,1749436245873,-480.0,0.00019161,2]
[365065805,1749436245882,-421.54928392,0.00019161,2]
[365065807,1749436245892,-464.8340954,0.00019161,2]
[365065809,1749436245902,-465.50049063,0.00019161,2]
[365065811,1749436245911,-421.53469853,0.00019161,2]
[365065813,1749436245920,-460.0,0.00019161,2]
[365065814,1749436245931,-466.09826197,0.00019161,2]
[365065816,1749436245940,-480.0,0.00019161,2]
[365065818,1749436245950,-483.7763396,0.00019161,2]
[365065820,1749436245960,-422.40192847,0.00019161,2]
[365065822,1749436245970,-461.01864059,0.00019161,2]
[365065824,1749436245978,-464.98357668,0.00019161,2]
[365065826,1749436245987,-469.59715697,0.00019161,2]
[365065827,1749436245997,-546.50121121,0.00019161,2]
[365065829,1749436246007,-480.0,0.00019161,2]
[365065831,1749436246017,-480.0,0.00019161,2]
[365065833,1749436246026,-460.0,0.00019161,2]
[365065835,1749436246036,-431.28691045,0.00019161,2]
[365065837,1749436246045,-469.54485216,0.00019161,2]
[365065855,1749436246206,-462.04897209,0.00019161,2]
[365065857,1749436246216,-429.84979721,0.00019161,2]
[365065859,1749436246226,-425.21639477,0.00019161,2]
[365065861,1749436246235,-480.0,0.00019161,2]
[365065863,1749436246246,-480.0,0.00019161,2]
[365065865,1749436246256,-466.55843989,0.00019161,2]
[365065867,1749436246266,-460.0,0.00019161,2]
[365065869,1749436246275,-460.0,0.00019161,2]
[365065871,1749436246285,-480.0,0.00019161,2]
[365065873,1749436246295,-480.0,0.00019161,2]
[365065875,1749436246304,-480.0,0.00019161,2]
[365065878,1749436246314,-465.45644409,0.00019161,2]
[365065880,1749436246325,-480.0,0.00019161,2]
[365065882,1749436246336,-469.54313572,0.00019161,2]
[365065885,1749436246346,-430.63705018,0.00019161,2]
[365065887,1749436246355,-464.38202741,0.00019161,2]
[365065889,1749436246364,-463.51943952,0.00019161,2]
[365065891,1749436246375,-467.31422846,0.00019161,2]
[365065893,1749436246384,-468.38479795,0.00019161,2]
[365065895,1749436246394,-463.85809871,0.00019161,2]
[365065897,1749436246405,-460.0,0.00019161,2]
[365065899,1749436246415,-425.75986373,0.00019161,2]
[365065901,1749436246425,-480.0,0.00019161,2]
[365065903,1749436246435,-461.80280388,0.00019161,2]
[365065905,1749436246444,-472.33809356,0.00019161,2]
[365065907,1749436246453,-465.38417283,0.00019161,2]
[365065909,1749436246463,-480.0,0.00019161,2]
[365065911,1749436246472,-346.18519175,0.00019161,2]
[365065913,1749436246482,-460.0,0.00019161,2]
[365065915,1749436246492,-480.0,0.00019161,2]
[365065917,1749436246501,-480.0,0.00019161,2]
[365065918,1749436246510,-480.0,0.00019161,2]
[365065920,1749436246520,-300.0,0.00019161,2]
[365065922,1749436246531,-480.0,0.00019161,2]
[365065924,1749436246540,-480.0,0.00019161,2]
[365065926,1749436246549,-465.69791463,0.00019161,2]
[365065928,1749436246558,-480.0,0.00019161,2]
[365065930,1749436246567,-470.69918687,0.00019161,2]
[365065932,1749436246576,-463.12149963,0.00019161,2]
[365065934,1749436246585,-422.76367818,0.00019161,2]
[365065936,1749436246594,-480.0,0.00019161,2]
[365065938,1749436246603,-480.0,0.00019161,2]
[365065939,1749436246612,-422.82350774,0.00019161,2]
[365065941,1749436246621,-464.60934089,0.00019161,2]
[365065943,1749436246630,-464.74742423,0.00019161,2]
[365065945,1749436246641,-467.3700931,0.00019161,2]
[365065947,1749436246650,-461.17962328,0.00019161,2]
[365065949,1749436246659,-500.26763007,0.00019161,2]
[365065951,1749436246669,-470.12022709,0.00019161,2]
[365065953,1749436246678,-463.57116254,0.00019161,2]
[365065955,1749436246688,-471.99414675,0.00019161,2]
[365065957,1749436246697,-461.73334662,0.00019161,2]
[365065959,1749436246706,-467.12294237,0.00019161,2]
[365065961,1749436246715,-427.68298983,0.00019161,2]
[365065963,1749436246724,-286.29328722,0.00019161,2]
[365065965,1749436246733,-480.0,0.00019161,2]
[365065966,1749436246742,-463.28711739,0.00019161,2]
[365065968,1749436246751,-253.04867789,0.00019161,2]
[365065970,1749436246761,-433.18729598,0.00019161,2]
[365065972,1749436246770,-480.0,0.00019161,2]
[365065974,1749436246780,-464.21806376,0.00019161,2]
[365065976,1749436246790,-461.75849875,0.00019161,2]
[365065978,1749436246799,-425.35785333,0.00019161,2]
[365065980,1749436246808,-480.0,0.00019161,2]
[365065982,1749436246818,-464.61503118,0.00019161,2]
[365065985,1749436246827,-480.0,0.00019161,2]
[365065987,1749436246836,-505.01542223,0.00019161,2]
[365065989,1749436246845,-460.0,0.00019161,2]
[365065991,1749436246855,-427.87592554,0.00019161,2]
[365065993,1749436246864,-480.0,0.00019161,2]
[365065995,1749436246873,-467.28521121,0.00019161,2]
[365065997,1749436246882,-523.57359692,0.00019161,2]
[365065999,1749436246893,-1002.26,0.00019161,2]
[365066001,1749436246902,-480.0,0.00019161,2]
[365066003,1749436246911,-480.0,0.00019161,2]
[365066005,1749436246922,-427.48832571,0.00019161,2]
[365066006,1749436246932,-480.0,0.00019161,2]
[365066008,1749436246941,-460.0,0.00019161,2]
[365066010,1749436246954,-464.09445643,0.00019161,2]
[365066012,1749436246963,-541.56,0.00019161,2]
[365066014,1749436246973,-462.92702234,0.00019161,2]
[365066016,1749436246982,-463.82090267,0.00019161,2]
[365066018,1749436246991,-430.71681628,0.00019161,2]
[365066020,1749436246999,-462.74313552,0.00019161,2]
[365066022,1749436247010,-480.0,0.00019161,2]
[365066023,1749436247019,-463.27608077,0.00019161,2]
[365066025,1749436247029,-480.0,0.00019161,2]
[365066026,1749436247039,-480.0,0.00019161,2]
[365066027,1749436247048,-429.97714953,0.00019161,2]
[365066028,1749436247057,-480.0,0.00019161,2]
[365066029,1749436247068,-460.0,0.00019161,2]
[365066031,1749436247077,-480.0,0.00019161,2]
[365066032,1749436247086,-480.0,0.00019161,2]
[365066033,1749436247096,-464.75173236,0.00019161,2]
[365066035,1749436247105,-460.0,0.00019161,2]
[365066036,1749436247114,-534.06823694,0.00019161,2]
[365066037,1749436247123,-480.0,0.00019161,2]
[365066038,1749436247133,-460.0,0.00019161,2]
[365066039,1749436247142,-459.33384163,0.00019161,2]
[365066040,1749436247151,-480.0,0.00019161,2]
[365066041,1749436247161,-574.51517248,0.00019161,2]
[365066042,1749436247170,-422.91914688,0.00019161,2]
[365066043,1749436247183,-480.0,0.00019161,2]
[365066044,1749436247193,-460.0,0.00019161,2]
[365066045,1749436247202,-480.0,0.00019161,2]
[365066046,1749436247211,-480.0,0.00019161,2]
[365066047,1749436247221,-480.0,0.00019161,2]
[365066048,1749436247231,-623.74600207,0.00019161,2]
[365066049,1749436247240,-430.6628184,0.00019161,2]
[365066051,1749436247250,-461.92138672,0.00019161,2]
[365066053,1749436247260,-480.0,0.00019161,2]
[365066055,1749436247271,-480.0,0.00019161,2]
[365066057,1749436247282,-480.0,0.00019161,2]
[365066059,1749436247292,-480.0,0.00019161,2]
[365066061,1749436247301,-480.0,0.00019161,2]
[365066063,1749436247310,-480.0,0.00019161,2]
[365066065,1749436247320,-480.0,0.00019161,2]
[365066066,1749436247333,-480.0,0.00019161,2]
[365066067,1749436247343,-480.0,0.00019161,2]
[365066068,1749436247353,-480.0,0.00019161,2]
[365066069,1749436247363,-480.0,0.00019161,2]
[365066071,1749436247374,-480.0,0.00019161,2]
[365066073,1749436247383,-480.0,0.00019161,2]
[365066074,1749436247394,-460.0,0.00019161,2]
[365066076,1749436247406,-480.0,0.00019161,2]
[365066077,1749436247415,-480.0,0.00019161,2]
[365066078,1749436247426,-480.0,0.00019161,2]
[365066079,1749436247435,-480.0,0.00019161,2]
[365066080,1749436247444,-427.81353173,0.00019161,2]
[365066081,1749436247455,-467.5118883,0.00019161,2]
[365066082,1749436247466,-468.3513314,0.00019161,2]
[365066083,1749436247476,-426.56701573,0.00019161,2]
[365066084,1749436247486,-428.98432272,0.00019161,2]
[365066085,1749436247495,-474.3785837,0.00019161,2]
[365066086,1749436247505,-485.68065855,0.00019161,2]
[365066087,1749436247515,-429.25334761,0.00019161,2]
[365066088,1749436247525,-426.32860701,0.00019161,2]
[365066089,1749436247535,-467.73968996,0.00019161,2]
[365066090,1749436247545,-604.58995554,0.00019161,2]
[365066091,1749436247555,-478.76835419,0.00019161,2]
[365066092,1749436247565,-464.75964244,0.00019161,2]
[365066093,1749436247575,-480.0,0.00019161,2]
[365066094,1749436247585,-464.33087437,0.00019161,2]
[365066095,1749436247595,-467.801056,0.00019161,2]
[365066096,1749436247605,-476.79183389,0.00019161,2]
[365066097,1749436247615,-471.54942271,0.00019161,2]
[365066098,1749436247624,-467.3719138,0.00019161,2]
[365066099,1749436247634,-435.54954609,0.00019161,2]
[365066100,1749436247644,-465.34530753,0.00019161,2]
[365066101,1749436247654,-464.84693902,0.00019161,2]
[365066102,1749436247663,-480.0,0.00019161,2]
[365066103,1749436247673,-472.13319156,0.00019161,2]
[365066104,1749436247683,-459.36618302,0.00019161,2]
[365066105,1749436247693,-468.50554553,0.00019161,2]
[365066106,1749436247703,-471.29440349,0.00019161,2]
[365066107,1749436247713,-463.08421838,0.00019161,2]
[365066108,1749436247723,-450.0,0.00019161,2]
[365066109,1749436247734,-431.51408952,0.00019161,2]
[365066110,1749436247743,-465.17557189,0.00019161,2]
[365066111,1749436247753,-500.0,0.00019173,2]
[365066112,1749436247764,-500.0,0.00019178,2]
[365066113,1749436247774,-500.0,0.00019178,2]
[365066114,1749436247784,-500.0,0.00019178,2]
[365066115,1749436247793,-592.90841595,0.00019178,2]
[365066116,1749436247803,-151.0,0.00019178,2]
[365066117,1749436247813,-152.72,0.00019178,2]
[365066118,1749436247822,-150.0,0.00019196,2]
[365066119,1749436247832,-252.03930076,0.00019197,2]
[365066120,1749436247843,-5570.80070007,0.000192,2]
[365066121,1749436248415,-514.13845786,0.00019159,2]
[365066122,1749436248426,-480.0,0.0001916,2]
[365066123,1749436248435,-116.88453399,0.000192,2]
[365066124,1749436248446,-500.0,0.000192,7]
[365066125,1749436248456,-417.65880015,0.00019206,2]
[365066126,1749436248465,-1050.83319272,0.0001921,2]
[365066127,1749436248475,-150.0,0.0001923,2]
[365066128,1749436248485,-150.0,0.00019242,2]
[365066129,1749436248494,-1050.83319272,0.00019279,2]
[365066130,1749436248504,-417.65880015,0.00019279,2]
[365066131,1749436248514,-150.0,0.00019296,2]
[365066132,1749436248523,-800.0,0.000193,7]
[365066133,1749436248532,-150.0,0.00019308,2]
[365066134,1749436248542,-591.46,0.00019324,2]
[365066135,1749436248551,-533.03,0.00019324,2]
[365066136,1749436248561,-671.59,0.00019324,2]
[365066137,1749436248571,-480.0,0.00019324,2]
[365066138,1749436248580,-480.0,0.00019324,2]
[365066139,1749436248590,-480.0,0.00019324,2]
[365066140,1749436248600,-480.0,0.00019324,2]
[365066141,1749436248609,-480.0,0.00019324,2]
[365066142,1749436248618,-480.0,0.00019324,2]
[365066143,1749436248629,-480.0,0.00019324,2]
[365066144,1749436248638,-480.0,0.00019324,2]
[365066145,1749436248648,-480.0,0.00019324,2]
[365066146,1749436248657,-480.0,0.00019324,2]
[365066147,1749436248667,-709.97,0.00019324,2]
[365066148,1749436248849,-480.0,0.00019324,2]
[365066149,1749436248859,-480.0,0.00019324,2]
[365066150,1749436248869,-480.0,0.00019324,2]
[365066151,1749436248879,-480.0,0.00019324,2]
[365066152,1749436248889,-609.06,0.00019324,2]
[365066153,1749436248898,-488.45,0.00019324,2]
[365066154,1749436248908,-782.72,0.00019324,2]
[365066155,1749436248918,-153.73148533,0.00019324,2]
[365066156,1749436248927,-1050.07,0.00019324,2]
[365066157,1749436248938,-637.25,0.00019324,2]
[365066158,1749436248947,-825.66,0.00019324,2]
[365066159,1749436248957,-496.75,0.00019324,2]
[365066160,1749436248968,-480.0,0.00019324,2]
[365066161,1749436248978,-824.02,0.00019324,2]
[365066162,1749436248989,-237.32,0.00019324,2]
[365066163,1749436249000,-480.0,0.00019324,2]
[365066164,1749436249010,-480.0,0.00019324,2]
[365066165,1749436249019,-494.4,0.00019324,2]
[365066166,1749436249028,-482.1,0.00019324,2]
[365066167,1749436249037,-340.55,0.00019324,2]
[365066168,1749436249046,-544.56,0.00019324,2]
[365066169,1749436249055,-480.0,0.00019324,2]
[365066170,1749436249065,-501.34,0.00019324,2]
[365066171,1749436249075,-480.0,0.00019324,2]
[365066172,1749436249085,-480.0,0.00019324,2]
[365066173,1749436249094,-480.0,0.00019324,2]
[365066174,1749436249103,-480.0,0.00019324,2]
[365066175,1749436249112,-480.0,0.00019324,2]
[365066176,1749436249122,-711.84,0.00019324,2]
[365066177,1749436249131,-480.0,0.00019324,2]
[365066178,1749436249140,-480.0,0.00019324,2]
[365066179,1749436249150,-480.0,0.00019324,2]
[365066180,1749436249159,-480.0,0.00019324,2]
[365066181,1749436249169,-480.0,0.00019324,2]
[365066182,1749436249179,-480.0,0.00019324,2]
[365066183,1749436249188,-480.0,0.00019324,2]
[365066184,1749436249198,-565.63,0.00019324,2]